Workbook

Sheet قاعدة البيانات
A2: رقم الطلبية | B2: التسلسل2 | C2: اسم الزبونة | D2: دولار | E2: يمني | F2: المبلغ المدفوع
A3: 100 | B3: 1 | C3: المقطري | D3: 5.33 | E3: =D3*555 -> 2958.15 | F3: 20000
A4: 100 | C4: المقطري | D4: 10.93 | E4: =D4*555 -> 6066.15
A5: 100 | C5: المقطري | D5: 1.07 | E5: 593.85
A6: 100 | C6: المقطري | D6: 12.53 | E6: 6954.15
A7: 100 | C7: المقطري | D7: 6.13 | E7: 3402.15
A8: 100 | C8: المقطري | D8: 6.93 | E8: 3846.15
A9: 100 | C9: المقطري | D9: 11.73 | E9: 6510.15
A10: 100 | C10: المقطري | D10: 7.73 | E10: 4290.15
A11: 100 | C11: المقطري | D11: 6.93 | E11: 3846.15
A12: 100 | C12: المقطري | D12: 10.39 | E12: 5766.45
A13: 100 | C13: المقطري | D13: 6.66 | E13: 3696.3
A14: 100 | C14: المقطري | D14: 5.86 | E14: 3252.3
A15: 100 | B15: 2 | C15: صفية | D15: 10.66 | E15: 5916.3 | F15: 51700
A16: 100 | C16: صفية | D16: 1.33 | E16: 738.15
A17: 100 | C17: صفية | D17: 1.6 | E17: 888
A18: 100 | C18: صفية | D18: 10.39 | E18: 5766.45
A19: 100 | C19: صفية | D19: =3.2*2 -> 6.4 | E19: 3552
A20: 100 | C20: صفية | D20: =8*2 -> 16 | E20: 8880
A21: 100 | C21: صفية | D21: 8.26 | E21: 4584.3
A22: 100 | C22: صفية | D22: 3.73 | E22: 2070.15
A23: 100 | C23: صفية | D23: 6.4 | E23: 3552
A24: 100 | C24: صفية | D24: 14.12 | E24: 7836.6
A25: 100 | C25: صفية | D25: 14.39 | E25: 7986.45
A26: 100 | B26: 3 | C26: سحر | D26: 16.79 | E26: 9318.45 | F26: 8000
A27: 100 | B27: 4 | C27: عليا إبراهيم | D27: 9.33 | E27: 5178.15 | F27: 0
A28: 100 | C28: عليا إبراهيم | D28: 15.19 | E28: 8430.45
A29: 100 | C29: عليا إبراهيم | D29: 10.66 | E29: 5916.3
A30: 100 | C30: عليا إبراهيم | D30: 9.59 | E30: 5322.45
A31: 100 | B31: 5 | C31: ملكة | D31: 4 | E31: 2220 | F31: 52200
A32: 100 | C32: ملكة | D32: 23.72 | E32: 13164.6
A33: 100 | C33: ملكة | D33: 6.66 | E33: 3696.3
A34: 100 | C34: ملكة | D34: 5.33 | E34: 2958.15
A35: 100 | C35: ملكة | D35: 14.92 | E35: 8280.6
A36: 100 | C36: ملكة | D36: 17.32 | E36: 9612.6
A37: 100 | C37: ملكة | D37: 19.72 | E37: 10944.6
A38: 100 | C38: ملكة | D38: =5.06*2 -> 10.12 | E38: 5616.6
A39: 100 | C39: ملكة | D39: =8.26*2 -> 16.52 | E39: 9168.6
A40: 100 | C40: ملكة | D40: 26.12 | E40: 14496.6
A41: 100 | C41: ملكة | D41: 6.13 | E41: 3402.15
A42: 100 | C42: ملكة | D42: 15.46 | E42: 8580.3
A43: 100 | B43: 6 | C43: عبير | D43: 16.52 | E43: 9168.6 | F43: 0
A44: 100 | B44: 7 | C44: ام رودينا | D44: 5.33 | E44: 2958.15 | F44: 0
A45: 100 | C45: ام رودينا | D45: 5.86 | E45: 3252.3
A46: 100 | C46: ام رودينا | D46: 4.8 | E46: 2664
A47: 100 | C47: ام رودينا | D47: 5.06 | E47: 2808.3
A48: 100 | C48: ام رودينا | D48: 4 | E48: 2220
A49: 100 | C49: ام رودينا | D49: 10.13 | E49: 5622.15
A50: 100 | C50: ام رودينا | D50: 23.99 | E50: 13314.45
A51: 100 | C51: ام رودينا | D51: 0.8 | E51: 444
A52: 100 | C52: ام رودينا | D52: 8 | E52: 4440
A53: 100 | B53: 8 | C53: سناء | D53: 21.59 | E53: 11982.45 | F53: 0
A54: 100 | C54: سناء | D54: 2.13 | E54: 1182.15
A55: 100 | C55: سناء | D55: 11.99 | E55: 6654.45
A56: 100 | C56: سناء | D56: 6.4 | E56: 3552
A57: 100 | C57: سناء | D57: 14.66 | E57: 8136.3
A58: 100 | B58: 9 | C58: كفاية | D58: 12.53 | E58: 6954.15 | F58: 10000
A59: 100 | C59: كفاية | D59: 11.19 | E59: 6210.45
A60: 100 | C60: كفاية | D60: 8.79 | E60: 4878.45
A61: 100 | B61: 10 | C61: ريم | D61: 11.73 | E61: 6510.15 | F61: 50000
A62: 100 | C62: ريم | D62: 8.79 | E62: 4878.45
A63: 100 | C63: ريم | D63: 11.46 | E63: 6360.3
A64: 100 | C64: ريم | D64: 11.99 | E64: 6654.45
A65: 100 | C65: ريم | D65: 21.59 | E65: 11982.45
A66: 100 | C66: ريم | D66: 17.06 | E66: 9468.3
A67: 100 | C67: ريم | D67: 17.06 | E67: 9468.3
A68: 100 | C68: ريم | D68: 6.93 | E68: =D68*555 -> 3846.15
A69: 100 | C69: ريم | D69: 5.33 | E69: 2958.15
A70: 100 | C70: ريم | D70: 5.6 | E70: 3108
A71: 100 | C71: ريم | D71: 4.53 | E71: 2514.15
A72: 100 | C72: ريم | D72: 19.45 | E72: 10794.75
A73: 100 | B73: 11 | C73: هبة | D73: 8.53 | E73: 4734.15 | F73: 4700
A74: 100 | B74: 12 | C74: عليا | D74: 1.07 | E74: 593.85 | F74: 0
A75: 100 | C75: عليا | D75: 2.4 | E75: 1332
A76: 100 | C76: عليا | D76: 15.19 | E76: 8430.45
A77: 100 | B77: 13 | C77: ملاك | D77: 1.33 | E77: 738.15 | F77: 2200
A78: 100 | C78: ملاك | D78: 1.33 | E78: 738.15
A79: 100 | C79: ملاك | D79: 1.2 | E79: 666
A80: 100 | B80: 14 | C80: شيماء | D80: 1.87 | E80: 1037.85 | F80: 2400
A81: 100 | C81: شيماء | D81: 1.6 | E81: 888
A82: 100 | C82: شيماء | D82: 0.8 | E82: 444
A83: 100 | C83: ريم | D83: 5.33 | E83: 2958.15
A84: 100 | B84: 15 | C84: غادة | D84: 6.93 | E84: 3846.15 | F84: 28700
A85: 100 | C85: غادة | D85: 1.33 | E85: 738.15
A86: 100 | C86: غادة | D86: 16.79 | E86: 9318.45
A87: 100 | C87: غادة | D87: 10.13 | E87: 5622.15
A88: 100 | C88: غادة | D88: 6.13 | E88: 3402.15
A89: 100 | C89: غادة | D89: 4 | E89: 2220
A90: 100 | C90: غادة | D90: 6.4 | E90: 3552
A91: 100 | B91: 16 | C91: اسرار | D91: 5.06 | E91: 2808.3 | F91: 0
A92: 100 | C92: اسرار | D92: 13.59 | E92: 7542.45
A93: 100 | C93: اسرار | D93: 12.26 | E93: 6804.3
A94: 100 | C94: سنا | D94: 1.2 | E94: 666
A95: 100 | C95: سنا | D95: 1.07 | E95: 593.85
A96: 100 | C96: سنا | D96: 2.67 | E96: 1481.85
A97: 100 | C97: سنا | D97: 1.87 | E97: 1037.85
A98: 100 | B98: 17 | C98: بشرى | D98: 7.2 | E98: 3996 | F98: 0
A99: 100 | C99: بشرى | D99: 6.93 | E99: 3846.15
A100: 100 | C100: بشرى | D100: 8.53 | E100: 4734.15
A101: 100 | C101: بشرى | D101: 2.67 | E101: 1481.85
A102: 100 | C102: بشرى | D102: 2.13 | E102: 1182.15
A103: 100 | C103: بشرى | D103: 2.67 | E103: 1481.85
A104: 100 | C104: بشرى | D104: 3.2 | E104: 1776
A105: 100 | C105: بشرى | D105: 1.87 | E105: 1037.85
A106: 100 | C106: بشرى | D106: 2.4 | E106: 1332
A107: 100 | C107: بشرى | D107: =3.2*2 -> 6.4 | E107: 3552
A108: 100 | C108: بشرى | D108: 2.13 | E108: 1182.15
A109: 100 | C109: بشرى | D109: 3.73 | E109: 2070.15
A110: 100 | C110: بشرى | D110: 3.46 | E110: 1920.3
A111: 101 | B111: 1 | C111: هناء | D111: 5.86 | E111: 3252.3 | F111: 2500
A112: 101 | C112: هناء | D112: 4.79 | E112: 2658.45
A113: 101 | B113: 2 | C113: ولاء | D113: 7.72 | E113: 4284.6 | F113: 40000
A114: 101 | C114: ولاء | D114: 5.86 | E114: 3252.3
A115: 101 | C115: ولاء | D115: 21.3 | E115: 11821.5
A116: 101 | C116: ولاء | D116: 1.33 | E116: 738.15
A117: 101 | C117: ولاء | D117: 10.39 | E117: 5766.45
A118: 101 | C118: ولاء | D118: 1.33 | E118: 738.15
A119: 101 | C119: ولاء | D119: 12.78 | E119: 7092.9
A120: 101 | C120: ولاء | D120: 15.45 | E120: 8574.75
A121: 101 | C121: ولاء | D121: 10.13 | E121: 5622.15
A122: 101 | C122: ولاء | D122: 10.39 | E122: 5766.45
A123: 101 | C123: ولاء | D123: 14.38 | E123: 7980.9
A124: 101 | C124: ولاء | D124: 12.52 | E124: 6948.6
A125: 101 | C125: ولاء | D125: 5.59 | E125: 3102.45
A126: 101 | C126: ولاء | D126: 5.33 | E126: 2958.15
A127: 101 | C127: ولاء | D127: 1.33 | E127: 738.15
A128: 101 | C128: ولاء | D128: 1.33 | E128: 738.15
A129: 101 | C129: ولاء | D129: 4.26 | E129: 2364.3
A130: 101 | B130: 3 | C130: فنية | D130: 4.26 | E130: 2364.3 | F130: 0
A131: 101 | C131: فنية | D131: 4.8 | E131: 2664
A132: 101 | C132: فنية | D132: 2.13 | E132: 1182.15
A133: 101 | B133: 4 | C133: ايمان | D133: 1.87 | E133: 1037.85 | F133: 0
A134: 101 | C134: ايمان | D134: 1.87 | E134: 1037.85
A135: 101 | B135: 5 | C135: اسرا | D135: 1.33 | E135: 738.15 | F135: 0
A136: 101 | B136: 6 | C136: شذا | D136: 25.85 | E136: 14346.75 | F136: 0
A137: 101 | C137: شذا | D137: 16.26 | E137: 9024.3
A138: 101 | C138: شذا | D138: 10.13 | E138: 5622.15
A139: 101 | C139: شذا | D139: 1.07 | E139: 593.85
A140: 101 | B140: 7 | C140: ملاك | D140: 16.26 | E140: 9024.3 | F140: 5000
A141: 101 | B141: 8 | C141: سحر | D141: 6.13 | E141: 3402.15 | F141: 0
A142: 101 | B142: 9 | C142: ميمونة | D142: 18.64 | E142: 10345.2 | F142: 0
A143: 101 | B143: 10 | C143: عبير | D143: 9.59 | E143: 5322.45 | F143: 0
A144: 101 | B144: 11 | C144: شيماء | D144: 11.73 | E144: 6510.15
A145: 101 | C145: شيماء | D145: 5.86 | E145: 3252.3 | F145: 5000
A146: 101 | C146: شيماء | D146: 10.12 | E146: 5616.6
A147: 101 | B147: 12 | C147: هديل | D147: 18.11 | E147: 10051.05 | F147: 30000
A148: 101 | C148: هديل | D148: 17.58 | E148: 9756.9
A149: 101 | C149: هديل | D149: 13.85 | E149: 7686.75
A150: 101 | C150: هديل | D150: 24.23 | E150: 13447.65
A151: 101 | C151: هديل | D151: 13.85 | E151: 7686.75
A152: 101 | C152: هديل | D152: 25.83 | E152: 14335.65
A153: 101 | B153: 13 | C153: هبة | D153: 11.72 | E153: 6504.6 | F153: 6900
A154: 101 | B154: 14 | C154: فائدة | D154: 15.99 | E154: 8874.45 | F154: 16000
A155: 101 | C155: فائدة | D155: 17.04 | E155: 9457.2
A156: 101 | B156: 15 | C156: علا | D156: 26.1 | E156: 14485.5 | F156: 15000
A157: 101 | C157: علا | D157: 2.4 | E157: 1332
A158: 101 | C158: علا | D158: 7.72 | E158: 4284.6
A159: 101 | C159: علا | D159: 8.79 | E159: 4878.45
A160: 101 | C160: علا | D160: 1.86 | E160: 1032.3
A161: 101 | C161: علا | D161: 9.05 | E161: 5022.75
A162: 101 | C162: علا | D162: 10.12 | E162: 5616.6
A163: 101 | C163: علا | D163: 15.18 | E163: 8424.9
A164: 101 | C164: علا | D164: 28.76 | E164: 15961.8
A165: 101 | C165: علا | D165: 3.46 | E165: 1920.3
A166: 101 | C166: هديل | D166: 11.19 | E166: 6210.45
A167: 101 | B167: 16 | C167: ام مارينا | D167: 2.13 | E167: 1182.15 | F167: 15000
A168: 101 | C168: ام مارينا | D168: 1.86 | E168: 1032.3
A169: 101 | C169: ام مارينا | D169: 2.13 | E169: 1182.15
A170: 101 | C170: ام مارينا | D170: 1.6 | E170: 888
A171: 101 | C171: ام مارينا | D171: 1.6 | E171: 888
A172: 101 | C172: ام مارينا | D172: 1.6 | E172: 888
A173: 101 | C173: ام مارينا | D173: 8.52 | E173: 4728.6
A174: 101 | C174: ام مارينا | D174: 5.33 | E174: 2958.15
A175: 101 | C175: ام مارينا | D175: 8.79 | E175: 4878.45
A176: 101 | C176: ام مارينا | D176: 9.59 | E176: 5322.45
A177: 101 | C177: ام مارينا | D177: 5.86 | E177: 3252.3
A178: 101 | C178: ام مارينا | D178: 3.99 | E178: 2214.45
A179: 101 | C179: ام مارينا | D179: 9.95 | E179: 5522.25
A180: 102 | B180: 1 | C180: ليناء | D180: 1.6 | E180: =D180*558 -> 892.8 | F180: 10000
A181: 102 | C181: ليناء | D181: 2.93 | E181: =D181*558 -> 1634.94
A182: 102 | C182: ليناء | D182: 10.65 | E182: 5942.7
A183: 102 | C183: ليناء | D183: 3.2 | E183: 1785.6
A184: 102 | B184: 2 | C184: امل | D184: 9.06 | E184: 5055.48 | F184: 5200
A185: 102 | B185: 3 | C185: ملكة | D185: 19.44 | E185: 10847.52 | F185: 15000
A186: 102 | C186: ملكة | D186: 15.18 | E186: 8470.44
A187: 102 | C187: ملكة | D187: 14.11 | E187: 7873.38
A188: 102 | C188: ملكة | D188: 1.86 | E188: 1037.88
A189: 102 | C189: ملكة | D189: 15.45 | E189: 8621.1
A190: 102 | B190: 4 | C190: نبض | D190: 7.19 | E190: 4012.02 | F190: 5000
A191: 102 | C191: نبض | D191: 1.6 | E191: 892.8
A192: 102 | C192: نبض | D192: 2.66 | E192: 1484.28
A193: 102 | C193: نبض | D193: 2.4 | E193: 1339.2
A194: 102 | C194: نبض | D194: 2.66 | E194: 1484.28
A195: 102 | C195: نبض | D195: 2.66 | E195: 1484.28
A196: 102 | C196: نبض | D196: 0.8 | E196: 446.4
A197: 102 | B197: 5 | C197: أحلام عصام | D197: 5.66 | E197: 3158.28 | F197: 0
A198: 102 | C198: أحلام عصام | D198: 3.46 | E198: 1930.68
A199: 102 | B199: 6 | C199: عبير | D199: 9.59 | E199: 5351.22 | F199: 7868
A200: 102 | C200: عبير | D200: 2.66 | E200: 1484.28
A201: 102 | C201: عبير | D201: 2.4 | E201: 1339.2
... 367 more rows

Sheet الخلاصة
A1: الاسم | B1: دولار | C1: يمني | D1: المبلغ المدفوع | E1: الباقي عندها او لها | F1: يمني | G1: المبلغ المدفوع | H1: الباقي عندها او لها | I1: 103
A2: ملكة | B2: 39.4 | C2: 21867 | D2: 11100 | E2: =C2-D2 -> 10767 | F2: =B2*555 -> 21867 | G2: =D2 -> 11100 | H2: =F2-G2 -> 10767 | J2: المطلوب دالة او كود عندما ادخل رقم الطلبية الموجودة في الصفحة قاعدة البيانات في الخلية I1 تترحل الطلبية بالاجماليات الى جدول الخلاصة
A3: سحر | B3: 15.44 | C3: 8569.2 | D3: 5000 | E3: 3569.2 | F3: =B3*555 -> 8569.2 | G3: =D3 -> 5000 | H3: =F3-G3 -> 3569.2
A4: لينا | B4: 40.72 | C4: 22599.6 | D4: 15000 | E4: 7599.6 | F4: 22599.6 | G4: 15000 | H4: 7599.6
A5: اميمة | B5: 67.09 | C5: 37234.95 | D5: 15000 | E5: 22234.95 | F5: 37234.95 | G5: 15000 | H5: 22234.95
A6: ريم | B6: 15.97 | C6: 8863.35 | D6: 10000 | E6: -1136.65 | F6: 8863.35 | G6: 10000 | H6: -1136.65
B7: 53.31 | C7: 29587.05 | D7: 0 | E7: 29587.05 | F7: 29587.05 | G7: 0 | H7: 29587.05
B8: 16.26 | C8: 9024.3 | D8: 5000 | E8: 4024.3 | F8: 9024.3 | G8: 5000 | H8: 4024.3
B9: 6.13 | C9: 3402.15 | D9: 0 | E9: 3402.15 | F9: 3402.15 | G9: 0 | H9: 3402.15
B10: 18.64 | C10: 10345.2 | D10: 0 | E10: 10345.2 | F10: 10345.2 | G10: 0 | H10: 10345.2
B11: 9.59 | C11: 5322.45 | D11: 0 | E11: 5322.45 | F11: 5322.45 | G11: 0 | H11: 5322.45
B12: 27.71 | C12: 15379.05 | D12: 5000 | E12: 10379.05 | F12: 15379.05 | G12: 5000 | H12: 10379.05
B13: 124.64 | C13: 69175.2 | D13: 30000 | E13: 39175.2 | F13: 69175.2 | G13: 30000 | H13: 39175.2
B14: 11.72 | C14: 6504.6 | D14: 6900 | E14: -395.4 | F14: 6504.6 | G14: 6900 | H14: -395.4
B15: 33.03 | C15: 18331.65 | D15: 16000 | E15: 2331.65 | F15: 18331.65 | G15: 16000 | H15: 2331.65
B16: 113.44 | C16: 62959.2 | D16: 15000 | E16: 47959.2 | F16: 62959.2 | G16: 15000 | H16: 47959.2
B17: 62.95 | C17: 34937.25 | D17: 15000 | E17: 19937.25 | F17: 34937.25 | G17: 15000 | H17: 19937.25
B18: =SUMIF('قاعدة البيانات'!A19:F1015,A18,'قاعدة البيانات'!B19:B1015) -> 0 | C18: =SUMIF('قاعدة البيانات'!A19:F1015,A18,'قاعدة البيانات'!C19:C1015) -> 0 | D18: =SUMIF('قاعدة البيانات'!A19:F1015,A18,'قاعدة البيانات'!D19:D1015) -> 0 | E18: 0 | F18: 0 | G18: 0 | H18: 0
B19: =SUMIF('قاعدة البيانات'!A20:F1016,A19,'قاعدة البيانات'!B20:B1016) -> 0 | C19: =SUMIF('قاعدة البيانات'!A20:F1016,A19,'قاعدة البيانات'!C20:C1016) -> 0 | D19: =SUMIF('قاعدة البيانات'!A20:F1016,A19,'قاعدة البيانات'!D20:D1016) -> 0 | E19: =C19-D19 -> 0 | F19: 0 | G19: =D19 -> 0 | H19: =F19-G19 -> 0
B20: =SUMIF('قاعدة البيانات'!A21:F1017,A20,'قاعدة البيانات'!B21:B1017) -> 0 | C20: =SUMIF('قاعدة البيانات'!A21:F1017,A20,'قاعدة البيانات'!C21:C1017) -> 0 | D20: =SUMIF('قاعدة البيانات'!A21:F1017,A20,'قاعدة البيانات'!D21:D1017) -> 0 | E20: 0 | F20: 0 | G20: 0 | H20: 0
B21: =SUMIF('قاعدة البيانات'!A22:F1018,A21,'قاعدة البيانات'!B22:B1018) -> 0 | C21: =SUMIF('قاعدة البيانات'!A22:F1018,A21,'قاعدة البيانات'!C22:C1018) -> 0 | D21: =SUMIF('قاعدة البيانات'!A22:F1018,A21,'قاعدة البيانات'!D22:D1018) -> 0 | E21: 0 | F21: 0 | G21: 0 | H21: 0
B22: =SUMIF('قاعدة البيانات'!A23:F1019,A22,'قاعدة البيانات'!B23:B1019) -> 0 | C22: =SUMIF('قاعدة البيانات'!A23:F1019,A22,'قاعدة البيانات'!C23:C1019) -> 0 | D22: =SUMIF('قاعدة البيانات'!A23:F1019,A22,'قاعدة البيانات'!D23:D1019) -> 0 | E22: 0 | F22: 0 | G22: 0 | H22: 0
B23: =SUMIF('قاعدة البيانات'!A24:F1020,A23,'قاعدة البيانات'!B24:B1020) -> 0 | C23: =SUMIF('قاعدة البيانات'!A24:F1020,A23,'قاعدة البيانات'!C24:C1020) -> 0 | D23: =SUMIF('قاعدة البيانات'!A24:F1020,A23,'قاعدة البيانات'!D24:D1020) -> 0 | E23: 0 | F23: 0 | G23: 0 | H23: 0
B24: =SUMIF('قاعدة البيانات'!A25:F1021,A24,'قاعدة البيانات'!B25:B1021) -> 0 | C24: =SUMIF('قاعدة البيانات'!A25:F1021,A24,'قاعدة البيانات'!C25:C1021) -> 0 | D24: =SUMIF('قاعدة البيانات'!A25:F1021,A24,'قاعدة البيانات'!D25:D1021) -> 0 | E24: 0 | F24: 0 | G24: 0 | H24: 0
B25: =SUMIF('قاعدة البيانات'!A26:F1022,A25,'قاعدة البيانات'!B26:B1022) -> 0 | C25: =SUMIF('قاعدة البيانات'!A26:F1022,A25,'قاعدة البيانات'!C26:C1022) -> 0 | D25: =SUMIF('قاعدة البيانات'!A26:F1022,A25,'قاعدة البيانات'!D26:D1022) -> 0 | E25: 0 | F25: =B25*566 -> 0 | G25: 0 | H25: 0
B26: =SUMIF('قاعدة البيانات'!A27:F1023,A26,'قاعدة البيانات'!B27:B1023) -> 0 | C26: =SUMIF('قاعدة البيانات'!A27:F1023,A26,'قاعدة البيانات'!C27:C1023) -> 0 | D26: =SUMIF('قاعدة البيانات'!A27:F1023,A26,'قاعدة البيانات'!D27:D1023) -> 0 | E26: 0 | F26: 0 | G26: 0 | H26: 0
B27: =SUMIF('قاعدة البيانات'!A28:F1024,A27,'قاعدة البيانات'!B28:B1024) -> 0 | C27: =SUMIF('قاعدة البيانات'!A28:F1024,A27,'قاعدة البيانات'!C28:C1024) -> 0 | D27: =SUMIF('قاعدة البيانات'!A28:F1024,A27,'قاعدة البيانات'!D28:D1024) -> 0 | E27: 0 | F27: 0 | G27: 0 | H27: 0
B28: =SUMIF('قاعدة البيانات'!A29:F1025,A28,'قاعدة البيانات'!B29:B1025) -> 0 | C28: =SUMIF('قاعدة البيانات'!A29:F1025,A28,'قاعدة البيانات'!C29:C1025) -> 0 | D28: =SUMIF('قاعدة البيانات'!A29:F1025,A28,'قاعدة البيانات'!D29:D1025) -> 0 | E28: 0 | F28: 0 | G28: 0 | H28: 0
B29: =SUMIF('قاعدة البيانات'!A30:F1026,A29,'قاعدة البيانات'!B30:B1026) -> 0 | C29: =SUMIF('قاعدة البيانات'!A30:F1026,A29,'قاعدة البيانات'!C30:C1026) -> 0 | D29: =SUMIF('قاعدة البيانات'!A30:F1026,A29,'قاعدة البيانات'!D30:D1026) -> 0 | E29: 0 | F29: 0 | G29: 0 | H29: 0
B30: =SUMIF('قاعدة البيانات'!A31:F1027,A30,'قاعدة البيانات'!B31:B1027) -> 0 | C30: =SUMIF('قاعدة البيانات'!A31:F1027,A30,'قاعدة البيانات'!C31:C1027) -> 0 | D30: =SUMIF('قاعدة البيانات'!A31:F1027,A30,'قاعدة البيانات'!D31:D1027) -> 0 | E30: 0 | F30: 0 | G30: 0 | H30: 0
B31: =SUMIF('قاعدة البيانات'!A32:F1028,A31,'قاعدة البيانات'!B32:B1028) -> 0 | C31: =SUMIF('قاعدة البيانات'!A32:F1028,A31,'قاعدة البيانات'!C32:C1028) -> 0 | D31: =SUMIF('قاعدة البيانات'!A32:F1028,A31,'قاعدة البيانات'!D32:D1028) -> 0 | E31: =C31-D31 -> 0
B32: =SUMIF('قاعدة البيانات'!A33:F1029,A32,'قاعدة البيانات'!B33:B1029) -> 0 | C32: =SUMIF('قاعدة البيانات'!A33:F1029,A32,'قاعدة البيانات'!C33:C1029) -> 0 | D32: =SUMIF('قاعدة البيانات'!A33:F1029,A32,'قاعدة البيانات'!D33:D1029) -> 0 | E32: 0
B33: =SUMIF('قاعدة البيانات'!A34:F1030,A33,'قاعدة البيانات'!B34:B1030) -> 0 | C33: =SUMIF('قاعدة البيانات'!A34:F1030,A33,'قاعدة البيانات'!C34:C1030) -> 0 | D33: =SUMIF('قاعدة البيانات'!A34:F1030,A33,'قاعدة البيانات'!D34:D1030) -> 0 | E33: 0
B34: =SUMIF('قاعدة البيانات'!A35:F1031,A34,'قاعدة البيانات'!B35:B1031) -> 0 | C34: =SUMIF('قاعدة البيانات'!A35:F1031,A34,'قاعدة البيانات'!C35:C1031) -> 0 | D34: =SUMIF('قاعدة البيانات'!A35:F1031,A34,'قاعدة البيانات'!D35:D1031) -> 0 | E34: 0
B35: =SUMIF('قاعدة البيانات'!A36:F1032,A35,'قاعدة البيانات'!B36:B1032) -> 0 | C35: =SUMIF('قاعدة البيانات'!A36:F1032,A35,'قاعدة البيانات'!C36:C1032) -> 0 | D35: =SUMIF('قاعدة البيانات'!A36:F1032,A35,'قاعدة البيانات'!D36:D1032) -> 0 | E35: 0
B36: =SUMIF('قاعدة البيانات'!A37:F1033,A36,'قاعدة البيانات'!B37:B1033) -> 0 | C36: =SUMIF('قاعدة البيانات'!A37:F1033,A36,'قاعدة البيانات'!C37:C1033) -> 0 | D36: =SUMIF('قاعدة البيانات'!A37:F1033,A36,'قاعدة البيانات'!D37:D1033) -> 0 | E36: 0
B37: =SUMIF('قاعدة البيانات'!A38:F1034,A37,'قاعدة البيانات'!B38:B1034) -> 0 | C37: =SUMIF('قاعدة البيانات'!A38:F1034,A37,'قاعدة البيانات'!C38:C1034) -> 0 | D37: =SUMIF('قاعدة البيانات'!A38:F1034,A37,'قاعدة البيانات'!D38:D1034) -> 0 | E37: 0
B38: =SUMIF('قاعدة البيانات'!A39:F1035,A38,'قاعدة البيانات'!B39:B1035) -> 0 | C38: =SUMIF('قاعدة البيانات'!A39:F1035,A38,'قاعدة البيانات'!C39:C1035) -> 0 | D38: =SUMIF('قاعدة البيانات'!A39:F1035,A38,'قاعدة البيانات'!D39:D1035) -> 0 | E38: 0
B39: =SUMIF('قاعدة البيانات'!A40:F1036,A39,'قاعدة البيانات'!B40:B1036) -> 0 | C39: =SUMIF('قاعدة البيانات'!A40:F1036,A39,'قاعدة البيانات'!C40:C1036) -> 0 | D39: =SUMIF('قاعدة البيانات'!A40:F1036,A39,'قاعدة البيانات'!D40:D1036) -> 0 | E39: 0
B40: =SUMIF('قاعدة البيانات'!A41:F1037,A40,'قاعدة البيانات'!B41:B1037) -> 0 | C40: =SUMIF('قاعدة البيانات'!A41:F1037,A40,'قاعدة البيانات'!C41:C1037) -> 0 | D40: =SUMIF('قاعدة البيانات'!A41:F1037,A40,'قاعدة البيانات'!D41:D1037) -> 0 | E40: 0
B41: =SUMIF('قاعدة البيانات'!A42:F1038,A41,'قاعدة البيانات'!B42:B1038) -> 0 | C41: =SUMIF('قاعدة البيانات'!A42:F1038,A41,'قاعدة البيانات'!C42:C1038) -> 0 | D41: =SUMIF('قاعدة البيانات'!A42:F1038,A41,'قاعدة البيانات'!D42:D1038) -> 0 | E41: 0
B42: =SUMIF('قاعدة البيانات'!A43:F1039,A42,'قاعدة البيانات'!B43:B1039) -> 0 | C42: =SUMIF('قاعدة البيانات'!A43:F1039,A42,'قاعدة البيانات'!C43:C1039) -> 0 | D42: =SUMIF('قاعدة البيانات'!A43:F1039,A42,'قاعدة البيانات'!D43:D1039) -> 0 | E42: 0
B43: =SUMIF('قاعدة البيانات'!A44:F1040,A43,'قاعدة البيانات'!B44:B1040) -> 0 | C43: =SUMIF('قاعدة البيانات'!A44:F1040,A43,'قاعدة البيانات'!C44:C1040) -> 0 | D43: =SUMIF('قاعدة البيانات'!A44:F1040,A43,'قاعدة البيانات'!D44:D1040) -> 0 | E43: 0
B44: =SUMIF('قاعدة البيانات'!A45:F1041,A44,'قاعدة البيانات'!B45:B1041) -> 0 | C44: =SUMIF('قاعدة البيانات'!A45:F1041,A44,'قاعدة البيانات'!C45:C1041) -> 0 | D44: =SUMIF('قاعدة البيانات'!A45:F1041,A44,'قاعدة البيانات'!D45:D1041) -> 0 | E44: 0
B45: =SUMIF('قاعدة البيانات'!A46:F1042,A45,'قاعدة البيانات'!B46:B1042) -> 0 | C45: =SUMIF('قاعدة البيانات'!A46:F1042,A45,'قاعدة البيانات'!C46:C1042) -> 0 | D45: =SUMIF('قاعدة البيانات'!A46:F1042,A45,'قاعدة البيانات'!D46:D1042) -> 0 | E45: 0
B46: =SUMIF('قاعدة البيانات'!A47:F1043,A46,'قاعدة البيانات'!B47:B1043) -> 0 | C46: =SUMIF('قاعدة البيانات'!A47:F1043,A46,'قاعدة البيانات'!C47:C1043) -> 0 | D46: =SUMIF('قاعدة البيانات'!A47:F1043,A46,'قاعدة البيانات'!D47:D1043) -> 0 | E46: 0
B47: =SUMIF('قاعدة البيانات'!A48:F1044,A47,'قاعدة البيانات'!B48:B1044) -> 0 | C47: =SUMIF('قاعدة البيانات'!A48:F1044,A47,'قاعدة البيانات'!C48:C1044) -> 0 | D47: =SUMIF('قاعدة البيانات'!A48:F1044,A47,'قاعدة البيانات'!D48:D1044) -> 0 | E47: 0
B48: =SUMIF('قاعدة البيانات'!A49:F1045,A48,'قاعدة البيانات'!B49:B1045) -> 0 | C48: =SUMIF('قاعدة البيانات'!A49:F1045,A48,'قاعدة البيانات'!C49:C1045) -> 0 | D48: =SUMIF('قاعدة البيانات'!A49:F1045,A48,'قاعدة البيانات'!D49:D1045) -> 0 | E48: 0
B49: =SUMIF('قاعدة البيانات'!A50:F1046,A49,'قاعدة البيانات'!B50:B1046) -> 0 | C49: =SUMIF('قاعدة البيانات'!A50:F1046,A49,'قاعدة البيانات'!C50:C1046) -> 0 | D49: =SUMIF('قاعدة البيانات'!A50:F1046,A49,'قاعدة البيانات'!D50:D1046) -> 0 | E49: 0
B50: =SUMIF('قاعدة البيانات'!A51:F1047,A50,'قاعدة البيانات'!B51:B1047) -> 0 | C50: =SUMIF('قاعدة البيانات'!A51:F1047,A50,'قاعدة البيانات'!C51:C1047) -> 0 | D50: =SUMIF('قاعدة البيانات'!A51:F1047,A50,'قاعدة البيانات'!D51:D1047) -> 0 | E50: 0
B51: =SUMIF('قاعدة البيانات'!A52:F1048,A51,'قاعدة البيانات'!B52:B1048) -> 0 | C51: =SUMIF('قاعدة البيانات'!A52:F1048,A51,'قاعدة البيانات'!C52:C1048) -> 0 | D51: =SUMIF('قاعدة البيانات'!A52:F1048,A51,'قاعدة البيانات'!D52:D1048) -> 0 | E51: 0
B52: =SUMIF('قاعدة البيانات'!A53:F1049,A52,'قاعدة البيانات'!B53:B1049) -> 0 | C52: =SUMIF('قاعدة البيانات'!A53:F1049,A52,'قاعدة البيانات'!C53:C1049) -> 0 | D52: =SUMIF('قاعدة البيانات'!A53:F1049,A52,'قاعدة البيانات'!D53:D1049) -> 0 | E52: 0
B53: =SUMIF('قاعدة البيانات'!A54:F1050,A53,'قاعدة البيانات'!B54:B1050) -> 0 | C53: =SUMIF('قاعدة البيانات'!A54:F1050,A53,'قاعدة البيانات'!C54:C1050) -> 0 | D53: =SUMIF('قاعدة البيانات'!A54:F1050,A53,'قاعدة البيانات'!D54:D1050) -> 0 | E53: 0
B54: =SUMIF('قاعدة البيانات'!A55:F1051,A54,'قاعدة البيانات'!B55:B1051) -> 0 | C54: =SUMIF('قاعدة البيانات'!A55:F1051,A54,'قاعدة البيانات'!C55:C1051) -> 0 | D54: =SUMIF('قاعدة البيانات'!A55:F1051,A54,'قاعدة البيانات'!D55:D1051) -> 0 | E54: 0
A55: الإجمالي | B55: =SUM(B2:B30) -> 656.04 | C55: 364102.2 | D55: 149000 | E55: 215102.2 | F55: 364102.2 | G55: 149000 | H55: 215102.2
B57: =B55-#REF! -> 
C58: 311000 | D58: 99000 | E58: 146000
B59: 851.64 | C59: =C58-C55 -> -53102.2 | D59: =D58-D55 -> -50000 | E59: =E58-E55 -> -69102.2
B60: =B59-B55 -> 195.6 | G60: 79400
C61: =C55*10/100 -> 36410.22
B62: =623.88 -> 623.88 | D62: =C58-D58 -> 212000
B63: =B55-B62 -> 32.16 | C63: =B63*558 -> 17945.28 | D63: 166000
B64: 3.99 | D64: =D63-D55 -> 17000 | E64: 143.1
B65: =B63-B64 -> 28.17 | E65: =E64-B3 -> 127.66 | G65: 8000
G66: 20000
G67: 52200
G68: 34000
G69: 2200
G70: 2400
E71: 52.14 | G71: =SUM(G65:G70) -> 118800 | H71: الموجود نقدا
E72: =B13-E71 -> 72.5 | G72: =D55-G71 -> 30200 | H72: الباقي من حساب الدفعة
G75: 4700
E76: 162963 | G76: 0
B77: اجمالي الحسبة بسعر560 | C77: =C55 -> 364102.2 | E77: =F80-E76 -> 0 | G77: 17700
B78: اجملي الحسبة بسعر 566 | C78: =B55*566 -> 371318.64 | G78: 10000
B79: الفارق | C79: =C78-C77 -> 7216.44 | G79: 50000
E80: اجمالي رصيد البنك | F80: =158263+G75+G76 -> 162963 | G80: 28700
E81: ينزل منة مايخص الدفعة | F81: =F80-G81 -> 51863 | G81: =SUM(G75:G80) -> 111100 | H81: الموجود في البنك من حساب الدفعة
C82: =C78-C55 -> 7216.44 | E82: الباقي | F82: 38000
F83: 13000
F84: 10000
F85: 0
F86: =SUM(F82:F85) -> 61000
F87: =F81-F86 -> -9137
C99: =A101/C101 -> 149.2537313
A101: 50000 | B101: 700 | C101: 335 | D101: =B101*C101 -> 234500
B102: 150 | C102: 336 | D102: =B102*C102 -> 50400
A108: 83000 | C108: =1270*100 -> 127000
A109: 50000
A110: 50000
A111: =SUM(A108:A110) -> 183000
A112: =A111/C101 -> 546.2686567
